fUST/lending_fUST_20250605
["ID","MTS","AMOUNT","RATE_DAILY","PERIOD"]
[364486991,1749117044470,-440.0,0.00018356,2]
[364486992,1749117044479,-440.0,0.00018356,2]
[364486993,1749117044488,-281.98,0.00018356,2]
[364486994,1749117044498,-440.0,0.00018356,2]
[364486995,1749117044508,-440.0,0.00018356,2]
[364486996,1749117044517,-363.26,0.00018356,2]
[364486997,1749117044527,-440.0,0.00018356,2]
[364486998,1749117044536,-360.0,0.00018356,2]
[364486999,1749117044546,-440.0,0.00018356,2]
[364487000,1749117044559,-440.0,0.00018356,2]
[364487001,1749117044569,-440.0,0.00018356,2]
[364487002,1749117044578,-440.0,0.00018356,2]
[364487003,1749117044587,-440.0,0.00018356,2]
[364487004,1749117044597,-430.0,0.00018356,2]
[364487005,1749117044606,-347.41524138,0.00018356,2]
[364487006,1749117044616,-440.0,0.00018356,2]
[364487007,1749117044625,-440.0,0.00018356,2]
[364487008,1749117044635,-440.0,0.00018356,2]
[364487009,1749117044644,-440.0,0.00018356,2]
[364487010,1749117044653,-440.0,0.00018356,2]
[364487011,1749117044663,-401.74035534,0.00018356,2]
[364487012,1749117044672,-430.0,0.00018356,2]
[364487013,1749117044682,-440.0,0.00018356,2]
[364487014,1749117044691,-440.0,0.00018356,2]
[364487015,1749117044700,-440.0,0.00018356,2]
[364487016,1749117044710,-440.0,0.00018356,2]
[364487017,1749117044719,-440.0,0.00018356,2]
[364487018,1749117044728,-440.0,0.00018356,2]
[364487019,1749117044738,-440.0,0.00018356,2]
[364487020,1749117044747,-440.0,0.00018356,2]
[364487021,1749117044756,-500.0,0.00018356,2]
[364487022,1749117044766,-500.0,0.00018356,2]
[364487023,1749117044776,-440.0,0.00018356,2]
[364487024,1749117044785,-440.0,0.00018356,2]
[364487025,1749117044795,-440.0,0.00018356,2]
[364487026,1749117044804,-440.0,0.00018356,2]
[364487027,1749117044814,-665.87,0.00018356,2]
[364487028,1749117044824,-440.0,0.00018356,2]
[364487029,1749117044833,-440.0,0.00018356,2]
[364487030,1749117044843,-1177.03159304,0.00018383,2]
[364487031,1749117044852,-1765.1107312,0.00018614,2]
[364487032,1749117044862,-2472.41,0.0001862,2]
[364487033,1749117044871,-1177.03159304,0.00018624,2]
[364487034,1749117044880,-440.0,0.00018629,2]
[364487035,1749117044890,-440.0,0.00018629,2]
[364487036,1749117044899,-440.0,0.00018629,2]
[364487037,1749117044909,-440.0,0.00018629,2]
[364487038,1749117044919,-440.0,0.00018629,2]
[364487039,1749117044928,-440.0,0.00018629,2]
[364487040,1749117044937,-440.0,0.00018629,2]
[364487041,1749117044947,-492.62,0.00018629,2]
[364487042,1749117044956,-440.0,0.00018629,2]
[364487043,1749117044965,-440.0,0.0001863,2]
[364487044,1749117044975,-440.0,0.0001863,2]
[364487045,1749117044984,-440.0,0.0001863,2]
[364487046,1749117044993,-440.0,0.0001863,2]
[364487047,1749117045004,-440.0,0.0001863,2]
[364487048,1749117045014,-440.0,0.0001863,2]
[364487049,1749117045023,-440.0,0.0001863,2]
[364487050,1749117045033,-440.0,0.0001863,2]
[364487051,1749117045043,-440.0,0.0001863,2]
[364487052,1749117045052,-440.0,0.0001863,2]
[364487053,1749117045067,-440.0,0.0001863,2]
[364487054,1749117045077,-440.0,0.0001863,2]
[364487055,1749117045087,-440.0,0.0001863,2]
[364487056,1749117045097,-440.0,0.0001863,2]
[364487057,1749117045108,-440.0,0.0001863,2]
[364487058,1749117045118,-440.0,0.0001863,2]
[364487059,1749117045127,-440.0,0.0001863,2]
[364487060,1749117045139,-440.0,0.0001863,2]
[364487061,1749117045149,-440.0,0.0001863,2]
[364487062,1749117045159,-440.0,0.0001863,2]
[364487063,1749117045169,-665.87,0.0001863,2]
[364487064,1749117045179,-440.0,0.0001863,2]
[364487065,1749117045188,-1177.03159304,0.00018866,2]
[364487066,1749117045198,-1005.47054717,0.000189,2]
[364487067,1749117045208,-440.0,0.00018903,2]
[364487068,1749117045218,-440.0,0.00018903,2]
[364487069,1749117045229,-440.0,0.00018903,2]
[364487070,1749117045238,-440.0,0.00018903,2]
[364487071,1749117045248,-440.0,0.00018903,2]
[364487072,1749117045258,-440.0,0.00018903,2]
[364487073,1749117045268,-440.0,0.00018904,2]
[364487074,1749117045278,-575.6,0.00018904,2]
[364487075,1749117045287,-440.0,0.00018904,2]
[364487076,1749117045297,-423.06923827,0.00018904,2]
[364487077,1749117045307,-440.0,0.00018904,2]
[364487078,1749117045316,-440.0,0.00018904,2]
[364487079,1749117045326,-440.0,0.00018904,2]
[364487080,1749117045336,-440.0,0.00018904,2]
[364487081,1749117045346,-440.0,0.00018904,2]
[364487082,1749117045355,-440.0,0.00018904,2]
[364487083,1749117045365,-440.0,0.00018904,2]
[364487084,1749117045375,-440.0,0.00018904,2]
[364487085,1749117045385,-440.0,0.00018904,2]
[364487086,1749117045395,-665.87,0.00018904,2]
[364487087,1749117045404,-440.0,0.00018904,2]
[364487088,1749117045414,-1177.03159304,0.00019107,2]
[364487089,1749117045424,-500.0,0.00019176,2]
[364487090,1749117045434,-440.0,0.00019177,2]
[364487091,1749117045444,-440.0,0.00019177,2]
[364487092,1749117045454,-440.0,0.00019177,2]
[364487093,1749117045463,-440.0,0.00019177,2]
[364487094,1749117045473,-440.0,0.00019177,2]
[364487095,1749117045483,-151.0,0.00019178,2]
[364487096,1749117045493,-151.0,0.00019178,2]
[364487097,1749117045503,-151.0,0.00019178,2]
[364487098,1749117045513,-440.0,0.00019178,2]
[364487099,1749117045523,-440.0,0.00019178,2]
[364487100,1749117045533,-440.0,0.00019178,2]
[364487101,1749117045542,-440.0,0.00019178,2]
[364487102,1749117045552,-440.0,0.00019178,2]
[364487103,1749117045563,-440.0,0.00019178,2]
[364487104,1749117045572,-556.67903056,0.00019178,2]
[364487105,1749117045582,-440.0,0.00019178,2]
[364487106,1749117045592,-440.0,0.00019178,2]
[364487107,1749117045603,-566.94,0.00019178,2]
[364487108,1749117045612,-440.0,0.00019178,2]
[364487109,1749117045622,-251.21,0.00019178,2]
[364487110,1749117045632,-440.0,0.00019178,2]
[364487111,1749117045642,-440.0,0.00019178,2]
[364487112,1749117045651,-665.87,0.00019178,2]
[364487113,1749117045661,-440.0,0.00019178,2]
[364487114,1749117045671,-188.335457,0.00019178,2]
[364487115,1749117045681,-500.0,0.00019208,2]
[364487116,1749117045695,-515.26198849,0.00019208,2]
[364487117,1749117045705,-344.6861475,0.00019208,2]
[364487119,1749117045715,-500.0,0.00019208,2]
[364487120,1749117045725,-500.0,0.00019208,2]
[364487121,1749117045734,-178.89610481,0.00019208,2]
[364487122,1749117045745,-500.0,0.00019208,2]
[364487123,1749117045754,-500.0,0.00019208,2]
[364487124,1749117045763,-502.70165441,0.00019208,2]
[364487125,1749117045774,-500.0,0.00019208,2]
[364487126,1749117045784,-500.0,0.00019208,2]
[364487127,1749117045794,-500.0,0.00019208,2]
[364487128,1749117045804,-500.0,0.00019208,2]
[364487129,1749117045817,-303.33600126,0.00019208,2]
[364487130,1749117045829,-500.0,0.00019208,2]
[364487131,1749117045839,-500.0,0.00019208,2]
[364487132,1749117045848,-251.40765416,0.00019208,2]
[364487133,1749117045858,-500.0,0.00019208,2]
[364487134,1749117045868,-500.0,0.00019208,2]
[364487135,1749117045878,-500.0,0.00019208,2]
[364487136,1749117045887,-500.0,0.00019208,2]
[364487137,1749117045897,-500.0,0.00019208,2]
[364487138,1749117045907,-500.0,0.00019208,2]
[364487139,1749117045917,-500.0,0.00019208,2]
[364487140,1749117045927,-500.0,0.00019208,2]
[364487141,1749117045937,-500.0,0.00019208,2]
[364487142,1749117045947,-500.0,0.00019288,2]
[364487143,1749117045957,-500.0,0.00019288,2]
[364487144,1749117045967,-585.15538902,0.00019311,2]
[364487145,1749117045977,-500.0,0.00019311,2]
[364487146,1749117045986,-500.0,0.00019311,2]
[364487147,1749117045996,-423.7637613,0.00019317,2]
[364487148,1749117046006,-160.0,0.00019317,2]
[364487149,1749117046016,-229.48950782,0.00019318,2]
[364487150,1749117046025,-842.5625,0.00019318,2]
[364487152,1749117046035,-160.0,0.00019318,2]
[364487154,1749117046044,-160.0,0.00019318,2]
[364487156,1749117046054,-217.51985616,0.00019329,2]
[364487168,1749117046385,-79.26131184,0.00019329,2]
[364487169,1749117046394,-151.0,0.00019329,2]
[364487170,1749117046403,-1177.03159304,0.00019348,2]
[364487171,1749117046412,-440.0,0.00019451,2]
[364487172,1749117046421,-440.0,0.00019451,2]
[364487173,1749117046430,-260.83,0.00019451,2]
[364487174,1749117046439,-249.78074607,0.00019451,2]
[364487186,1749117102507,2000.0,0.00021918,60]
[364487188,1749117303274,130036.22654006,0.000219,60]
[364487190,1749117524514,210.93408611,0.0001539,2]
[364487195,1749117611967,979.12478935,0.00016,2]
[364487196,1749117611991,4020.87521065,0.00016,2]
[364487197,1749117628296,5000.0,0.00016,2]
[364487198,1749117644159,5000.0,0.00016,2]
[364487199,1749117659891,750.55478935,0.00016,2]
[364487200,1749117659913,4249.44521065,0.00016,2]
[364487201,1749117675843,5000.0,0.00016,2]
[364487203,1749117691738,5000.0,0.00016,2]
[364487204,1749117707895,521.98478935,0.00016,2]
[364487205,1749117707919,4478.01521065,0.00016,2]
[364487206,1749117723166,5000.0,0.00016,2]
[364487208,1749117738782,5000.0,0.00016,2]
[364487210,1749117754895,293.41478935,0.00016,2]
[364487211,1749117754919,4706.58521065,0.00016,2]
[364487212,1749117771269,5000.0,0.00016,2]
[364487213,1749117787100,5000.0,0.00016,2]
[364487214,1749117803430,64.84478935,0.00016,2]
[364487215,1749117803453,4935.15521065,0.00016,2]
[364487216,1749117820172,5000.0,0.00016,2]
[364487217,1749117825781,158.20056458,0.0001539,2]
[364487218,1749117835465,4678.07422477,0.00016,2]
[364487219,1749117835489,321.92577523,0.00016,2]
[364487220,1749117850660,5000.0,0.00016,2]
[364487221,1749117865972,5000.0,0.00016,2]
[364487222,1749117883469,4449.50422477,0.00016,2]
[364487223,1749117883492,550.49577523,0.00016,2]
[364487224,1749117899802,5000.0,0.00016,2]
[364487225,1749117915064,5000.0,0.00016,2]
[364487227,1749117930373,4220.93422477,0.00016,2]
[364487228,1749117930396,779.06577523,0.00016,2]
[364487229,1749117946279,5000.0,0.00016,2]
[364487231,1749117963202,5000.0,0.00016,2]
[364487232,1749117978526,3992.36422477,0.00016,2]
[364487233,1749117978556,1007.63577523,0.00016,2]
[364487235,1749117993822,5000.0,0.00016,2]
[364487236,1749118005979,205.750999,0.00013699,2]
[364487237,1749118009032,5000.0,0.00016,2]
[364487239,1749118024229,3558.04322577,0.00016,2]
[364487240,1749118024253,1441.95677423,0.00016,2]
[364487241,1749118040119,5000.0,0.00016,2]
[364487242,1749118055357,5000.0,0.00016,2]
[364487243,1749118070623,3329.47322577,0.00016,2]
[364487244,1749118070647,1670.52677423,0.00016,2]
[364487245,1749118086442,5000.0,0.00016,2]
[364487246,1749118102263,5000.0,0.00016,2]
[364487247,1749118118664,3100.90322577,0.00016,2]
[364487248,1749118118688,1899.09677423,0.00016,2]
[364487249,1749118127883,216.11957791,0.00015714,2]
[364487251,1749118135245,5000.0,0.00016,2]
[364487258,1749118150606,5000.0,0.00016,2]
[364487259,1749118166546,2656.21364786,0.00016,2]
[364487260,1749118166570,2343.78635214,0.00016,2]
[364487261,1749118167867,157.78072945,0.00013699,2]
[364487264,1749118182838,5000.0,0.00016,2]
[364487265,1749118198635,5000.0,0.00016,2]
[364487268,1749118214640,2269.86291841,0.00016,2]
[364487269,1749118214665,2730.13708159,0.00016,2]
[364487270,1749118230322,5000.0,0.00016,2]
[364487288,1749118232584,-300.0,0.00016199,2]
[364487290,1749118232594,-500.0,0.000162,2]
[364487291,1749118232603,-500.0,0.000162,2]
[364487293,1749118232613,-500.0,0.000162,2]
[364487295,1749118232622,-500.0,0.000162,2]
[364487296,1749118232633,-500.0,0.000162,2]
[364487299,1749118232642,-500.0,0.000162,2]
[364487301,1749118232651,-500.0,0.000162,2]
[364487303,1749118232661,-500.0,0.000162,2]
[364487305,1749118232670,-500.0,0.000162,2]
[364487307,1749118232679,-500.0,0.000162,2]
[364487309,1749118232689,-500.0,0.000162,2]
[364487311,1749118232698,-299.43677421,0.000162,2]
[364487313,1749118232708,-211.3468755,0.0001655,2]
[364487316,1749118232717,-266.845168,0.00016878,2]
[364487319,1749118232727,-177.831983,0.00017156,2]
[364487321,1749118232736,-1407.67,0.0001747,2]
[364487323,1749118232747,-162.9746957,0.00017629,2]
[364487325,1749118232756,-902.39088821,0.000179,2]
[364487327,1749118232765,-902.39088799,0.00018141,2]
[364487329,1749118232775,-159.23156727,0.00018256,2]
[364487331,1749118232785,-430.0,0.00018356,2]
[364487334,1749118232795,-430.0,0.00018356,2]
[364487336,1749118232804,-430.0,0.00018356,2]
[364487338,1749118232813,-430.0,0.00018356,2]
[364487340,1749118232823,-500.0,0.00018356,2]
[364487342,1749118232832,-500.0,0.00018356,2]
[364487344,1749118232841,-430.0,0.00018356,2]
[364487346,1749118232852,-430.0,0.00018356,2]
[364487348,1749118232860,-478.09028257,0.00018356,2]
[364487350,1749118232870,-430.0,0.00018356,2]
[364487352,1749118232879,-430.0,0.00018356,2]
[364487354,1749118232888,-430.93212247,0.00018356,2]
[364487356,1749118232897,-430.0,0.00018356,2]
[364487358,1749118232907,-430.0,0.00018356,2]
[364487360,1749118232924,-430.0,0.00018356,2]
[364487362,1749118232933,-430.0,0.00018356,2]
[364487364,1749118232943,-430.0,0.00018356,2]
[364487366,1749118232952,-301.66022754,0.00018356,2]
[364487368,1749118232961,-442.42565302,0.00018356,2]
[364487370,1749118232970,-430.0,0.00018356,2]
[364487372,1749118232980,-430.0,0.00018356,2]
[364487374,1749118232989,-430.0,0.00018356,2]
[364487376,1749118232998,-440.0,0.00018356,2]
[364487378,1749118233008,-430.0,0.00018356,2]
[364487380,1749118233017,-269.16190268,0.00018356,2]
[364487382,1749118233026,-430.0,0.00018356,2]
[364487384,1749118233037,-500.0,0.00018356,2]
[364487386,1749118233046,-430.0,0.00018356,2]
[364487388,1749118233055,-430.0,0.00018356,2]
[364487390,1749118233064,-371.35782905,0.00018356,2]
[364487392,1749118233073,-430.0,0.00018356,2]
[364487394,1749118233082,-430.0,0.00018356,2]
[364487396,1749118233091,-430.0,0.00018356,2]
[364487398,1749118233102,-432.89144005,0.00018356,2]
[364487400,1749118233112,-430.0,0.00018356,2]
[364487402,1749118233122,-430.0,0.00018356,2]
[364487404,1749118233131,-430.0,0.00018356,2]
[364487406,1749118233140,-304.74673495,0.00018356,2]
[364487408,1749118233150,-430.0,0.00018356,2]
[364487410,1749118233159,-393.63358657,0.00018356,2]
[364487412,1749118233169,-440.0,0.00018356,2]
[364487414,1749118233179,-440.0,0.00018356,2]
[364487416,1749118233188,-430.0,0.00018356,2]
[364487418,1749118233197,-440.0,0.00018356,2]
[364487420,1749118233206,-440.0,0.00018356,2]
[364487422,1749118233215,-440.0,0.00018356,2]
[364487424,1749118233225,-440.0,0.00018356,2]
[364487426,1749118233234,-440.0,0.00018356,2]
[364487428,1749118233243,-440.0,0.00018356,2]
[364487430,1749118233253,-440.0,0.00018356,2]
[364487432,1749118233262,-440.0,0.00018356,2]
[364487434,1749118233271,-440.0,0.00018356,2]
[364487436,1749118233280,-168.64,0.00018356,2]
[364487438,1749118233290,-590.65,0.00018356,2]
[364487440,1749118233299,-440.0,0.00018356,2]
[364487442,1749118233308,-440.0,0.00018356,2]
[364487444,1749118233318,-440.0,0.00018356,2]
[364487446,1749118233327,-587.98,0.00018356,2]
[364487448,1749118233336,-440.0,0.00018356,2]
[364487450,1749118233347,-454.12,0.00018356,2]
[364487452,1749118233359,-440.0,0.00018356,2]
[364487454,1749118233368,-440.0,0.00018356,2]
[364487456,1749118233378,-440.0,0.00018356,2]
[364487458,1749118233388,-440.0,0.00018356,2]
[364487460,1749118233398,-440.0,0.00018356,2]
[364487462,1749118233407,-170.3752096,0.00018356,2]
[364487463,1749118233417,-440.0,0.00018356,2]
[364487466,1749118233430,-440.0,0.00018356,2]
[364487467,1749118233440,-440.0,0.00018356,2]
[364487469,1749118233450,-440.0,0.00018356,2]
[364487471,1749118233459,-440.0,0.00018356,2]
[364487474,1749118233469,-440.0,0.00018356,2]
[364487475,1749118233479,-440.0,0.00018356,2]
[364487477,1749118233489,-440.0,0.00018356,2]
[364487480,1749118233499,-440.0,0.00018356,2]
[364487481,1749118233509,-440.0,0.00018356,2]
[364487483,1749118233522,-440.0,0.00018356,2]
[364487486,1749118233532,-440.0,0.00018356,2]
[364487487,1749118233542,-440.0,0.00018356,2]
[364487490,1749118233551,-440.0,0.00018356,2]
[364487491,1749118233561,-440.0,0.00018356,2]
[364487493,1749118233571,-440.0,0.00018356,2]
[364487495,1749118233581,-697.54,0.00018356,2]
[364487497,1749118233592,-440.0,0.00018356,2]
[364487499,1749118233603,-440.0,0.00018356,2]
[364487501,1749118233613,-440.0,0.00018356,2]
[364487503,1749118233622,-430.0,0.00018356,2]
[364487505,1749118233632,-440.0,0.00018356,2]
[364487507,1749118233641,-440.0,0.00018356,2]
[364487509,1749118233650,-432.19609612,0.00018356,2]
[364487511,1749118233660,-440.0,0.00018356,2]
[364487513,1749118233670,-440.0,0.00018356,2]
[364487515,1749118233680,-400.23657272,0.00018356,2]
[364487517,1749118233690,-724.3,0.00018356,2]
[364487519,1749118233700,-440.0,0.00018356,2]
[364487521,1749118233709,-430.0,0.00018356,2]
[364487523,1749118233719,-440.0,0.00018356,2]
[364487525,1749118233729,-440.0,0.00018356,2]
[364487527,1749118233739,-440.0,0.00018356,2]
[364487530,1749118233750,-430.0,0.00018356,2]
[364487531,1749118233759,-500.0,0.00018356,2]
[364487533,1749118233769,-440.0,0.00018356,2]
[364487536,1749118233778,-430.0,0.00018356,2]
[364487537,1749118233788,-440.0,0.00018356,2]
[364487540,1749118233798,-430.0,0.00018356,2]
[364487542,1749118233807,-442.45751134,0.00018356,2]
[364487544,1749118233817,-440.0,0.00018356,2]
[364487546,1749118233826,-488.19,0.00018356,2]
[364487548,1749118233836,-430.0,0.00018356,2]
[364487550,1749118233847,-431.44290716,0.00018356,2]
[364487552,1749118233856,-440.0,0.00018356,2]
[364487554,1749118233866,-430.0,0.00018356,2]
[364487556,1749118233876,-430.0,0.00018356,2]
[364487558,1749118233885,-440.0,0.00018356,2]
[364487559,1749118233894,-431.11476541,0.00018356,2]
[364487562,1749118233904,-440.0,0.00018356,2]
[364487564,1749118233914,-217.4782507,0.00018356,2]
[364487566,1749118233923,-440.0,0.00018356,2]
[364487568,1749118233932,-440.0,0.00018356,2]
[364487570,1749118233942,-500.0,0.00018356,2]
[364487572,1749118233951,-500.0,0.00018356,2]
[364487574,1749118233960,-587.8,0.00018356,2]
[364487576,1749118233970,-431.94888769,0.00018356,2]
[364487578,1749118233980,-500.0,0.00018382,2]
[364487580,1749118233990,-902.39088799,0.00018383,2]
[364487582,1749118233999,-902.39088799,0.00018624,2]
[364487584,1749118234010,-500.0,0.00018629,2]
[364487586,1749118234019,-497.9328961,0.0001863,2]
[364487588,1749118234029,-440.0,0.0001863,2]
[364487590,1749118234038,-440.78212784,0.0001863,2]
[364487592,1749118234047,-440.0,0.0001863,2]
[364487594,1749118234057,-590.65,0.0001863,2]
[364487596,1749118234067,-440.0,0.0001863,2]
[364487598,1749118234076,-440.0,0.0001863,2]
[364487600,1749118234087,-454.12,0.0001863,2]
[364487602,1749118234097,-440.0,0.0001863,2]
[364487604,1749118234106,-115.73720393,0.0001863,2]
[364487607,1749118234123,-324.26279607,0.0001863,2]
[364487609,1749118234133,-440.0,0.0001863,2]
[364487611,1749118234142,-440.0,0.0001863,2]
[364487613,1749118234152,-440.0,0.0001863,2]
[364487615,1749118234162,-697.54,0.0001863,2]
[364487616,1749118234171,-200.32444105,0.0001863,2]
[364487618,1749118234181,-440.0,0.0001863,2]
[364487620,1749118234191,-440.0,0.0001863,2]
[364487622,1749118234201,-724.3,0.0001863,2]
[364487624,1749118234211,-440.0,0.0001863,2]
[364487626,1749118234220,-440.0,0.0001863,2]
[364487628,1749118234229,-265.08,0.0001863,2]
[364487630,1749118234239,-255.19,0.0001863,2]
[364487632,1749118234249,-440.0,0.0001863,2]
[364487634,1749118234259,-391.71300844,0.0001863,2]
[364487636,1749118234268,-587.8,0.0001863,2]
[364487638,1749118234279,-902.39088799,0.00018866,2]
[364487640,1749118234292,-527.93418379,0.00018903,2]
[364487642,1749118234302,-500.0,0.00018903,2]
[364487644,1749118234311,-385.6,0.00018904,2]
[364487646,1749118234323,-440.0,0.00018904,2]
[364487648,1749118234336,-590.65,0.00018904,2]
[364487650,1749118234346,-440.0,0.00018904,2]
[364487652,1749118234356,-440.0,0.00018904,2]
[364487655,1749118234366,-454.12,0.00018904,2]
[364487657,1749118234376,-440.0,0.00018904,2]
[364487658,1749118234391,-440.0,0.00018904,2]
[364487661,1749118234402,-440.0,0.00018904,2]
[364487663,1749118234412,-440.0,0.00018904,2]
[364487665,1749118234422,-440.0,0.00018904,2]
[364487666,1749118234435,-697.54,0.00018904,2]
[364487669,1749118234444,-440.0,0.00018904,2]
[364487671,1749118234454,-440.0,0.00018904,2]
[364487673,1749118234464,-724.3,0.00018904,2]
[364487675,1749118234475,-440.0,0.00018904,2]
[364487677,1749118234485,-440.0,0.00018904,2]
[364487679,1749118234494,-440.0,0.00018904,2]
[364487681,1749118234506,-587.8,0.00018904,2]
[364487683,1749118234516,-2815.33,0.00019058,2]
[364487685,1749118234527,-159.23156726,0.00019095,2]
[364487687,1749118234537,-902.39088799,0.00019107,2]
[364487689,1749118234547,-626.4789578,0.00019176,2]
[364487691,1749118234557,-440.0,0.00019178,2]
[364487693,1749118234566,-440.0,0.00019178,2]
[364487706,1749118234688,-440.0,0.00019178,2]
[364487708,1749118234698,-440.0,0.00019178,2]
[364487710,1749118234708,-589.2595557,0.00019178,2]
[364487712,1749118234718,-487.63070471,0.00019178,2]
[364487714,1749118234728,-590.65,0.00019178,2]
[364487716,1749118234737,-542.76,0.00019178,2]
[364487718,1749118234746,-440.0,0.00019178,2]
[364487720,1749118234756,-454.12,0.00019178,2]
[364487723,1749118234765,-440.0,0.00019178,2]
[364487724,1749118234775,-440.0,0.00019178,2]
[364487726,1749118234785,-440.0,0.00019178,2]
[364487728,1749118234795,-305.65369772,0.00019178,2]
[364487730,1749118234803,-440.0,0.00019178,2]
[364487731,1749118234813,-697.54,0.00019178,2]
[364487733,1749118234822,-440.0,0.00019178,2]
[364487735,1749118234832,-440.0,0.00019178,2]
[364487737,1749118234841,-724.3,0.00019178,2]
[364487739,1749118234851,-440.0,0.00019178,2]
[364487741,1749118234861,-440.0,0.00019178,2]
[364487743,1749118234870,-440.0,0.00019178,2]
[364487745,1749118234881,-587.8,0.00019178,2]
[364487747,1749118234890,-423.7637613,0.00019299,2]
[364487749,1749118234899,-842.5625,0.00019299,2]
[364487751,1749118234909,-229.48950782,0.00019299,2]
[364487753,1749118234918,-160.0,0.00019299,2]
[364487755,1749118234928,-212.94059491,0.00019309,2]
[364487757,1749118234937,-160.0,0.00019309,2]
[364487759,1749118234947,-160.0,0.00019309,2]
[364487761,1749118234957,-160.0,0.00019309,2]
[364487764,1749118234969,-500.0,0.00019347,2]
[364487766,1749118234979,-902.39088799,0.00019348,2]
[364487768,1749118234988,-189.60357583,0.00019451,2]
[364487773,1749118235028,-18.99447081,0.00019451,2]
[364487775,1749118235037,-440.0,0.00019452,2]
[364487777,1749118235047,-63.14610109,0.00019452,2]
[364487779,1749118235058,-526.5,0.00019452,2]
[364487781,1749118235070,-1.00389891,0.00019452,2]
[364487783,1749118235080,-260.7561011,0.00019452,2]
[364487890,1749118238384,-430.0,0.00018356,2]
[364487891,1749118238394,-179.2438989,0.00019452,2]
[364487892,1749118238404,-454.12,0.00019452,2]
[364487893,1749118238413,-440.0,0.00019452,2]
[364487894,1749118238424,-440.0,0.00019452,2]
[364487895,1749118238435,-440.0,0.00019452,2]
[364487896,1749118238445,-440.0,0.00019452,2]
[364487897,1749118238455,-697.54,0.00019452,2]
[364487898,1749118238474,-440.0,0.00019452,2]
[364487899,1749118238483,-440.0,0.00019452,2]
[364487900,1749118238493,-724.3,0.00019452,2]
[364487901,1749118238504,-440.0,0.00019452,2]
[364487902,1749118238515,-440.0,0.00019452,2]
[364487903,1749118238525,-440.0,0.00019452,2]
[364487904,1749118238535,-587.8,0.00019452,2]
[364487905,1749118238544,-182.52329081,0.00019452,2]
[364487907,1749118238554,-321.31102092,0.00019499,2]
[364487908,1749118238565,-902.39088799,0.0001959,2]
[364487909,1749118238574,-440.0,0.00019726,2]
[364487910,1749118238584,-590.65,0.00019726,2]
[364487911,1749118238594,-156.39,0.00019726,2]
[364487912,1749118238605,-454.12,0.00019726,2]
[364487914,1749118238615,-412.68,0.00019726,2]
[364487916,1749118238624,-440.0,0.00019726,2]
[364487918,1749118238635,-311.35,0.00019726,2]
[364487920,1749118238644,-440.0,0.00019726,2]
[364487921,1749118238654,-697.54,0.00019726,2]
[364487922,1749118238664,-440.0,0.00019726,2]
[364487923,1749118238674,-440.0,0.00019726,2]
[364487924,1749118238683,-724.3,0.00019726,2]